[Event "Snabb-SM för veteraner, 50+ 2019"]
[Site "Schackcentrum, Vegagatan 20, Gothenburg, Sweden"]
[Date "2019.10.05"]
[Round "3.6"]
[White "Madebrink, Lars"]
[Black "Wesslen, Ulf"]
[Result "1-0"]
[TimeControl "15 minutes + 10 seconds per move from move one"]
[WhiteFideId "1701347"]
[BlackFideId "1705199"]
[WhiteElo "2179"]
[BlackElo "1971"]

1. d4 {[%clk 00:15:17]} {[%emt 00:00:02]} f5 {[%clk 00:15:07]} {[%emt
00:00:13]} 2. Qd3 {[%clk 00:15:15]} {[%emt 00:00:12]} d5 {[%clk 00:15:01]}
{[%emt 00:00:17]} 3. Nf3 {[%clk 00:15:22]} {[%emt 00:00:03]} Nf6 {[%clk
00:14:57]} {[%emt 00:00:14]} 4. c4 {[%clk 00:15:29]} {[%emt 00:00:03]} e6
{[%clk 00:14:30]} {[%emt 00:00:37]} 5. Bf4 {[%clk 00:15:32]} {[%emt 00:00:06]}
Bb4+ {[%clk 00:13:38]} {[%emt 00:01:03]} 6. Nbd2 {[%clk 00:15:28]} {[%emt
00:00:14]} O-O {[%clk 00:13:31]} {[%emt 00:00:16]} 7. a3 {[%clk 00:15:28]}
{[%emt 00:00:11]} Be7 {[%clk 00:13:01]} {[%emt 00:00:40]} 8. e3 {[%clk
00:15:07]} {[%emt 00:00:31]} c6 {[%clk 00:11:40]} {[%emt 00:01:32]} 9. h3
{[%clk 00:15:14]} {[%emt 00:00:02]} Ne4 {[%clk 00:11:31]} {[%emt 00:00:19]} 10.
Ne5 {[%clk 00:13:53]} {[%emt 00:01:30]} Nd7 {[%clk 00:10:59]} {[%emt 00:00:43]}
11. Nxe4 {[%clk 00:13:08]} {[%emt 00:00:55]} fxe4 {[%clk 00:10:40]} {[%emt
00:00:29]} 12. Qc2 {[%clk 00:13:11]} {[%emt 00:00:06]} a5 {[%clk 00:09:36]}
{[%emt 00:01:15]} 13. O-O-O {[%clk 00:13:00]} {[%emt 00:00:20]} a4 {[%clk
00:08:27]} {[%emt 00:01:19]} 14. f3 {[%clk 00:11:57]} {[%emt 00:01:13]} Nf6
{[%clk 00:07:56]} {[%emt 00:00:42]} 15. fxe4 {[%clk 00:11:59]} {[%emt
00:00:08]} Nxe4 {[%clk 00:08:03]} {[%emt 00:00:03]} 16. Bd3 {[%clk 00:11:57]}
{[%emt 00:00:11]} Nf6 {[%clk 00:05:45]} {[%emt 00:02:29]} 17. g4 {[%clk
00:12:02]} {[%emt 00:00:05]} Kh8 {[%clk 00:03:14]} {[%emt 00:02:41]} 18. g5
{[%clk 00:11:55]} {[%emt 00:00:17]} Nh5 {[%clk 00:03:23]} {[%emt 00:00:01]} 19.
Bxh7 {[%clk 00:11:28]} {[%emt 00:00:37]} Rxf4 {[%clk 00:02:51]} {[%emt
00:00:42]} 20. exf4 {[%emt 00:00:08]} 1-0

[Event "Snabb-SM för veteraner, 50+ 2019"]
[Site "Schackcentrum, Vegagatan 20, Gothenburg, Sweden"]
[Date "2019.10.05"]
[Round "3.7"]
[White "Svensson, Sven"]
[Black "Ansner, Bjorn"]
[Result "1/2-1/2"]
[TimeControl "15 minutes + 10 seconds per move from move one"]
[WhiteFideId "1709240"]
[BlackFideId "1702769"]
[WhiteElo "2158"]
[BlackElo "1934"]

1. d4 {[%clk 00:15:17]} {[%emt 01:35:15]} d5 {[%clk 00:15:14]} {[%emt
00:00:11]} 2. c4 {[%clk 00:15:24]} {[%emt 00:00:03]} Nf6 {[%clk 00:14:44]}
{[%emt 00:00:39]} 3. cxd5 {[%clk 00:15:27]} {[%emt 00:00:08]} Nxd5 {[%clk
00:14:49]} {[%emt 00:00:04]} 4. Nf3 {[%clk 00:15:33]} {[%emt 00:00:04]} g6
{[%clk 00:14:50]} {[%emt 00:00:09]} 5. e4 {[%clk 00:15:33]} {[%emt 00:00:10]}
Nb6 {[%clk 00:14:57]} {[%emt 00:00:03]} 6. h3 {[%clk 00:15:38]} {[%emt
00:00:05]} Bg7 {[%clk 00:15:04]} {[%emt 00:00:04]} 7. Nc3 {[%clk 00:15:40]}
{[%emt 00:00:08]} O-O {[%clk 00:15:09]} {[%emt 00:00:04]} 8. Be2 {[%clk
00:15:40]} {[%emt 00:00:10]} Nc6 {[%clk 00:14:42]} {[%emt 00:00:37]} 9. Be3
{[%clk 00:15:39]} {[%emt 00:00:11]} Na5 {[%clk 00:14:11]} {[%emt 00:00:40]} 10.
Rc1 {[%clk 00:11:09]} {[%emt 00:04:40]} Nac4 {[%clk 00:09:52]} {[%emt
00:04:30]} 11. Bf4 {[%clk 00:11:16]} {[%emt 00:00:03]} c6 {[%clk 00:09:25]}
{[%emt 00:00:37]} 12. b3 {[%clk 00:10:32]} {[%emt 00:00:55]} Nd6 {[%clk
00:09:23]} {[%emt 00:00:11]} 13. Qd2 {[%clk 00:09:23]} {[%emt 00:01:20]} a5
{[%clk 00:08:52]} {[%emt 00:00:40]} 14. O-O {[%clk 00:08:44]} {[%emt 00:00:50]}
a4 {[%clk 00:08:11]} {[%emt 00:00:52]} 15. Bh6 {[%clk 00:07:55]} {[%emt
00:00:59]} axb3 {[%clk 00:07:31]} {[%emt 00:00:50]} 16. axb3 {[%clk 00:07:54]}
{[%emt 00:00:10]} Be6 {[%clk 00:07:15]} {[%emt 00:00:27]} 17. Bxg7 {[%clk
00:07:17]} {[%emt 00:00:47]} Kxg7 {[%clk 00:07:22]} {[%emt 00:00:04]} 18. Qb2
{[%clk 00:07:25]} {[%emt 00:00:01]} Kg8 {[%clk 00:07:23]} {[%emt 00:00:09]} 19.
Rfd1 {[%clk 00:06:49]} {[%emt 00:00:46]} Qb8 {[%clk 00:06:54]} {[%emt
00:00:39]} 20. Ra1 {[%clk 00:06:23]} {[%emt 00:00:36]} Qc7 {[%clk 00:06:57]}
{[%emt 00:00:07]} 21. Rxa8 {[%clk 00:06:03]} {[%emt 00:00:29]} Rxa8 {[%clk
00:07:05]} {[%emt 00:00:02]} 22. Rc1 {[%clk 00:06:11]} {[%emt 00:00:02]} Qb8
{[%clk 00:06:59]} {[%emt 00:00:16]} 23. Ne1 {[%clk 00:05:06]} {[%emt 00:01:16]}
Nd7 {[%clk 00:05:45]} {[%emt 00:01:23]} 24. Bf3 {[%clk 00:04:05]} {[%emt
00:01:12]} Nb6 {[%clk 00:05:41]} {[%emt 00:00:14]} 25. Nd3 {[%clk 00:04:02]}
{[%emt 00:00:13]} Bc8 {[%clk 00:04:23]} {[%emt 00:01:28]} 26. g4 {[%clk
00:03:52]} {[%emt 00:00:19]} Ne8 {[%clk 00:04:12]} {[%emt 00:00:20]} 27. Ra1
{[%clk 00:03:06]} {[%emt 00:00:57]} Rxa1+ {[%clk 00:04:16]} {[%emt 00:00:06]}
28. Qxa1 {[%clk 00:03:15]} Nd7 {[%clk 00:03:10]} {[%emt 00:01:16]} 29. Qa3
{[%clk 00:03:18]} {[%emt 00:00:08]} Qd6 {[%clk 00:03:07]} {[%emt 00:00:13]} 30.
Qxd6 {[%clk 00:03:14]} {[%emt 00:00:14]} exd6 {[%clk 00:03:16]} {[%emt
00:00:01]} 31. Kf1 {[%clk 00:03:06]} {[%emt 00:00:18]} Kf8 {[%clk 00:02:59]}
{[%emt 00:00:27]} 32. Ke2 {[%clk 00:03:15]} {[%emt 00:00:01]} Ke7 {[%clk
00:03:07]} {[%emt 00:00:01]} 33. Ke3 {[%clk 00:03:23]} {[%emt 00:00:02]} f6
{[%clk 00:03:11]} {[%emt 00:00:06]} 34. Bd1 {[%clk 00:03:30]} {[%emt 00:00:04]}
Nb6 {[%clk 00:03:05]} {[%emt 00:00:16]} 35. f4 {[%clk 00:03:38]} {[%emt
00:00:02]} Ng7 {[%clk 00:02:49]} {[%emt 00:00:26]} 36. h4 {[%clk 00:03:40]}
{[%emt 00:00:08]} h5 {[%clk 00:02:48]} {[%emt 00:00:11]} 37. gxh5 {[%clk
00:03:34]} {[%emt 00:00:16]} gxh5 {[%clk 00:02:45]} {[%emt 00:00:12]} 38. Bf3
{[%clk 00:02:41]} {[%emt 00:01:04]} Be6 {[%clk 00:02:45]} {[%emt 00:00:10]} 39.
Nc1 {[%clk 00:02:29]} {[%emt 00:00:21]} d5 {[%clk 00:02:08]} {[%emt 00:00:46]}
40. Kd3 {[%clk 00:02:09]} {[%emt 00:00:28]} Bg4 {[%clk 00:02:06]} {[%emt
00:00:15]} 41. Bg2 {[%clk 00:02:15]} {[%emt 00:00:04]} dxe4+ {[%clk 00:02:08]}
{[%emt 00:00:07]} 42. Bxe4 {[%clk 00:02:23]} {[%emt 00:00:01]} Nf5 {[%clk
00:02:14]} {[%emt 00:00:04]} 43. Bxf5 {[%clk 00:02:32]} {[%emt 00:00:01]} Bxf5+
{[%clk 00:02:23]} {[%emt 00:00:02]} 44. Ke3 {[%clk 00:02:41]} Nd5+ {[%clk
00:02:27]} {[%emt 00:00:06]} 45. Nxd5+ {[%clk 00:02:48]} {[%emt 00:00:03]} cxd5
{[%clk 00:02:36]} {[%emt 00:00:01]} 46. Kd2 {[%clk 00:02:45]} {[%emt 00:00:12]}
Kd6 {[%clk 00:02:45]} {[%emt 00:00:02]} 47. Kc3 {[%clk 00:02:54]} Kc6 {[%clk
00:02:49]} {[%emt 00:00:05]} 48. Kb4 {[%clk 00:03:02]} {[%emt 00:00:03]} Kb6
{[%clk 00:02:54]} {[%emt 00:00:05]} 49. Ne2 {[%clk 00:03:10]} {[%emt 00:00:02]}
Be4 {[%clk 00:02:50]} {[%emt 00:00:13]} 50. Ng3 {[%clk 00:03:14]} {[%emt
00:00:06]} Bg6 {[%clk 00:02:46]} {[%emt 00:00:13]} 51. Ne2 {[%clk 00:03:00]}
{[%emt 00:00:25]} Be4 {[%clk 00:02:46]} {[%emt 00:00:11]} 52. Nc3 {[%clk
00:03:08]} {[%emt 00:00:01]} Bf3 {[%clk 00:02:52]} {[%emt 00:00:04]} 53. Na4+
{[%clk 00:03:17]} {[%emt 00:00:02]} Kc6 {[%clk 00:02:56]} {[%emt 00:00:05]} 54.
Nc5 {[%clk 00:03:22]} {[%emt 00:00:06]} Bg4 {[%clk 00:03:01]} {[%emt 00:00:05]}
55. Na4 {[%clk 00:03:10]} {[%emt 00:00:21]} b6 {[%clk 00:03:03]} {[%emt
00:00:08]} 56. Nc3 {[%clk 00:03:18]} {[%emt 00:00:03]} Bf3 {[%clk 00:02:57]}
{[%emt 00:00:15]} 57. Nb1 {[%clk 00:02:22]} {[%emt 00:01:06]} Be2 {[%clk
00:02:20]} {[%emt 00:00:46]} 58. Nd2 {[%clk 00:02:27]} {[%emt 00:00:05]} Kd6
{[%clk 00:02:16]} {[%emt 00:00:14]} 59. Kc3 {[%clk 00:02:29]} {[%emt 00:00:08]}
Ke6 {[%clk 00:02:09]} {[%emt 00:00:18]} 60. Nb1 {[%clk 00:02:22]} {[%emt
00:00:17]} Kf5 {[%clk 00:01:56]} {[%emt 00:00:21]} 61. Kd2 {[%clk 00:02:31]}
{[%emt 00:00:02]} Bb5 {[%clk 00:01:07]} {[%emt 00:00:59]} 62. Ke3 {[%clk
00:02:40]} {[%emt 00:00:02]} Kg4 {[%clk 00:01:13]} {[%emt 00:00:04]} 63. Nc3
{[%clk 00:02:49]} Bc6 {[%clk 00:01:19]} {[%emt 00:00:03]} 64. Nd1 {[%clk
00:02:55]} {[%emt 00:00:04]} Kxh4 {[%clk 00:01:24]} {[%emt 00:00:06]} 65. Kf3
{[%clk 00:02:58]} {[%emt 00:00:06]} Bd7 {[%clk 00:01:28]} {[%emt 00:00:07]} 66.
Ne3 {[%clk 00:03:00]} {[%emt 00:00:08]} Be6 {[%clk 00:01:30]} {[%emt 00:00:08]}
67. Ng2+ {[%clk 00:01:51]} {[%emt 00:01:18]} Kh3 {[%clk 00:01:37]} {[%emt
00:00:03]} 68. Ne3 {[%clk 00:02:01]} Kh4 {[%clk 00:01:26]} {[%emt 00:00:21]} 69.
Ng2+ {[%clk 00:02:09]} {[%emt 00:00:02]} Kh3 {[%clk 00:01:35]} 70. Ne3 {[%clk
00:02:17]} {[%emt 00:00:02]} Kh2 {[%emt 00:00:22]} 71. f5 1/2-1/2

[Event "Snabb-SM för veteraner, 50+ 2019"]
[Site "Schackcentrum, Vegagatan 20, Gothenburg, Sweden"]
[Date "2019.10.05"]
[Round "3.8"]
[White "Skulason, Johann"]
[Black "Angskog, Kent"]
[Result "0-1"]
[TimeControl "15 minutes + 10 seconds per move from move one"]
[WhiteFideId "1733915"]
[BlackFideId "1703668"]
[WhiteElo "1839"]
[BlackElo "2136"]

1. e4 {[%clk 00:15:18]} {[%emt 00:00:02]} g6 {[%clk 00:15:17]} {[%emt
00:00:04]} 2. Nf3 {[%clk 00:15:23]} {[%emt 00:00:05]} Bg7 {[%clk 00:15:25]}
{[%emt 00:00:01]} 3. Bc4 {[%clk 00:15:26]} {[%emt 00:00:07]} c6 {[%clk
00:15:17]} {[%emt 00:00:16]} 4. d4 {[%clk 00:15:08]} {[%emt 00:00:30]} d5
{[%clk 00:15:21]} {[%emt 00:00:05]} 5. exd5 {[%clk 00:15:14]} {[%emt 00:00:06]}
cxd5 {[%clk 00:15:28]} {[%emt 00:00:02]} 6. Bb3 {[%clk 00:15:17]} {[%emt
00:00:06]} Nc6 {[%clk 00:15:13]} {[%emt 00:00:25]} 7. c3 {[%clk 00:15:20]}
{[%emt 00:00:08]} Bf5 {[%clk 00:13:55]} {[%emt 00:01:28]} 8. O-O {[%clk
00:15:25]} {[%emt 00:00:05]} Nf6 {[%clk 00:13:44]} {[%emt 00:00:19]} 9. Re1
{[%clk 00:15:09]} {[%emt 00:00:27]} O-O {[%clk 00:13:42]} {[%emt 00:00:12]} 10.
Nbd2 {[%clk 00:15:18]} {[%emt 00:00:02]} Bd3 {[%clk 00:12:09]} {[%emt
00:01:43]} 11. Ne5 {[%clk 00:15:01]} {[%emt 00:00:27]} Ba6 {[%clk 00:11:43]}
{[%emt 00:00:35]} 12. Ndf3 {[%clk 00:15:00]} {[%emt 00:00:10]} Ne4 {[%clk
00:10:49]} {[%emt 00:01:04]} 13. Nxc6 {[%clk 00:14:10]} {[%emt 00:01:02]} bxc6
{[%clk 00:10:56]} {[%emt 00:00:03]} 14. Bc2 {[%clk 00:14:07]} {[%emt 00:00:12]}
Nd6 {[%clk 00:06:25]} {[%emt 00:04:42]} 15. Bg5 {[%clk 00:14:00]} {[%emt
00:00:16]} Re8 {[%clk 00:06:14]} {[%emt 00:00:21]} 16. b3 {[%clk 00:13:42]}
{[%emt 00:00:28]} Rc8 {[%clk 00:06:13]} {[%emt 00:00:10]} 17. Bd3 {[%clk
00:13:50]} {[%emt 00:00:03]} Bxd3 {[%clk 00:06:03]} {[%emt 00:00:21]} 18. Qxd3
{[%clk 00:13:58]} {[%emt 00:00:02]} c5 {[%clk 00:05:56]} {[%emt 00:00:16]} 19.
dxc5 {[%clk 00:11:23]} {[%emt 00:02:46]} Rxc5 {[%clk 00:06:01]} {[%emt
00:00:04]} 20. Rac1 {[%clk 00:11:25]} {[%emt 00:00:08]} Ne4 {[%clk 00:03:31]}
{[%emt 00:02:39]} 21. Rxe4 {[%clk 00:09:50]} {[%emt 00:01:46]} dxe4 {[%clk
00:03:35]} {[%emt 00:00:05]} 22. Qxd8 {[%clk 00:09:57]} {[%emt 00:00:04]} Rxd8
{[%clk 00:03:38]} {[%emt 00:00:07]} 23. Bxe7 {[%clk 00:10:04]} {[%emt
00:00:02]} Rxc3 {[%emt 00:01:10]} 0-1

[Event "Snabb-SM för veteraner, 50+ 2019"]
[Site "Schackcentrum, Vegagatan 20, Gothenburg, Sweden"]
[Date "2019.10.05"]
[Round "3.9"]
[White "Andersson, Christer"]
[Black "Gamback, Bjorn"]
[Result "0-1"]
[TimeControl "15 minutes + 10 seconds per move from move one"]
[BlackTitle "CM"]
[WhiteFideId "1734857"]
[BlackFideId "1703161"]
[WhiteElo "1678"]
[BlackElo "2120"]

1. Nf3 {[%clk 00:15:18]} {[%emt 00:00:01]} Nf6 {[%clk 00:15:17]} {[%emt
00:00:03]} 2. d4 {[%clk 00:15:26]} {[%emt 00:00:02]} e6 {[%clk 00:15:24]}
{[%emt 00:00:04]} 3. Bf4 {[%clk 00:15:33]} {[%emt 00:00:03]} b6 {[%clk
00:14:49]} {[%emt 00:00:45]} 4. e3 {[%clk 00:15:23]} {[%emt 00:00:20]} Bb7
{[%clk 00:14:56]} {[%emt 00:00:03]} 5. Bd3 {[%clk 00:15:21]} {[%emt 00:00:12]}
d5 {[%clk 00:14:51]} {[%emt 00:00:15]} 6. O-O {[%clk 00:15:25]} {[%emt
00:00:06]} Nbd7 {[%clk 00:14:59]} {[%emt 00:00:01]} 7. Nbd2 {[%clk 00:15:33]}
{[%emt 00:00:02]} Ne4 {[%clk 00:15:01]} {[%emt 00:00:08]} 8. Ne5 {[%clk
00:15:18]} {[%emt 00:00:25]} a6 {[%clk 00:14:01]} {[%emt 00:01:11]} 9. Ndf3
{[%clk 00:14:27]} {[%emt 00:01:02]} Ndf6 {[%clk 00:13:56]} {[%emt 00:00:14]} 10.
Ng5 {[%clk 00:14:13]} {[%emt 00:00:24]} Nd6 {[%clk 00:13:30]} {[%emt 00:00:36]}
11. h4 {[%clk 00:11:43]} {[%emt 00:02:40]} h6 {[%clk 00:13:28]} {[%emt
00:00:12]} 12. Nh3 {[%clk 00:11:52]} Be7 {[%clk 00:13:05]} {[%emt 00:00:32]} 13.
h5 {[%clk 00:11:52]} {[%emt 00:00:10]} Nfe4 {[%clk 00:12:19]} {[%emt 00:00:57]}
14. Qg4 {[%clk 00:09:17]} {[%emt 00:02:45]} Nf6 {[%clk 00:11:34]} {[%emt
00:00:55]} 15. Qxg7 {[%clk 00:09:18]} {[%emt 00:00:09]} Rg8 {[%clk 00:11:42]}
{[%emt 00:00:02]} 16. Qxh6 {[%clk 00:09:24]} {[%emt 00:00:03]} Bf8 {[%clk
00:11:48]} {[%emt 00:00:04]} 0-1

[Event "Snabb-SM för veteraner, 50+ 2019"]
[Site "Schackcentrum, Vegagatan 20, Gothenburg, Sweden"]
[Date "2019.10.05"]
[Round "3.10"]
[White "Karlsson, Ulf"]
[Black "Jacobsson, Lennart"]
[Result "0-1"]
[TimeControl "15 minutes + 10 seconds per move from move one"]
[WhiteFideId "1721674"]
[BlackFideId "1753320"]
[WhiteElo "2035"]
[BlackElo "1833"]

1. e4 {[%clk 00:15:16]} {[%emt 00:00:04]} c6 {[%clk 00:15:16]} {[%emt
00:00:05]} 2. d4 {[%clk 00:15:20]} {[%emt 00:00:07]} d5 {[%clk 00:15:23]}
{[%emt 00:00:02]} 3. e5 {[%clk 00:15:28]} {[%emt 00:00:02]} c5 {[%clk
00:15:30]} {[%emt 00:00:03]} 4. dxc5 {[%clk 00:15:36]} {[%emt 00:00:02]} Nc6
{[%clk 00:14:58]} {[%emt 00:00:42]} 5. a3 {[%clk 00:15:44]} {[%emt 00:00:02]}
Nxe5 {[%clk 00:14:55]} {[%emt 00:00:13]} 6. Bb5+ {[%clk 00:15:47]} {[%emt
00:00:07]} Bd7 {[%clk 00:12:17]} {[%emt 00:02:49]} 7. Qxd5 {[%clk 00:14:45]}
{[%emt 00:01:11]} Nc6 {[%clk 00:11:26]} {[%emt 00:01:01]} 8. b4 {[%clk
00:13:59]} {[%emt 00:00:57]} Nf6 {[%clk 00:10:49]} {[%emt 00:00:47]} 9. Qd1
{[%clk 00:13:31]} {[%emt 00:00:37]} a5 {[%clk 00:09:52]} {[%emt 00:01:06]} 10.
Bb2 {[%clk 00:11:43]} {[%emt 00:01:59]} axb4 {[%clk 00:09:43]} {[%emt
00:00:19]} 11. a4 {[%clk 00:11:48]} {[%emt 00:00:05]} e6 {[%clk 00:09:20]}
{[%emt 00:00:33]} 12. Nf3 {[%clk 00:11:16]} {[%emt 00:00:42]} Bxc5 {[%clk
00:09:20]} {[%emt 00:00:10]} 13. O-O {[%clk 00:11:22]} {[%emt 00:00:04]} O-O
{[%clk 00:08:46]} {[%emt 00:00:44]} 14. Nbd2 {[%clk 00:11:30]} {[%emt
00:00:02]} Qe7 {[%clk 00:08:16]} {[%emt 00:00:40]} 15. Qe2 {[%clk 00:11:09]}
{[%emt 00:00:31]} Rfd8 {[%clk 00:08:05]} {[%emt 00:00:20]} 16. h3 {[%clk
00:11:16]} {[%emt 00:00:03]} Be8 {[%clk 00:07:07]} {[%emt 00:01:09]} 17. Bd3
{[%clk 00:11:18]} {[%emt 00:00:08]} Nd4 {[%clk 00:07:06]} {[%emt 00:00:11]} 18.
Nxd4 {[%clk 00:11:06]} {[%emt 00:00:23]} Bxd4 {[%clk 00:07:15]} {[%emt
00:00:01]} 19. Bxd4 {[%clk 00:10:50]} {[%emt 00:00:25]} Rxd4 {[%clk 00:07:24]}
{[%emt 00:00:02]} 20. Nb3 {[%clk 00:09:58]} {[%emt 00:01:01]} Rd5 {[%clk
00:07:22]} {[%emt 00:00:11]} 21. Bc4 {[%clk 00:09:09]} {[%emt 00:00:59]} Rd6
{[%clk 00:07:18]} {[%emt 00:00:14]} 22. a5 {[%clk 00:09:09]} {[%emt 00:00:11]}
Qc7 {[%clk 00:07:12]} {[%emt 00:00:15]} 23. Bd3 {[%clk 00:09:13]} {[%emt
00:00:06]} Bc6 {[%clk 00:07:00]} {[%emt 00:00:23]} 24. Rfc1 {[%clk 00:06:41]}
{[%emt 00:02:42]} Nd5 {[%clk 00:06:02]} {[%emt 00:01:07]} 25. Qe4 {[%clk
00:05:35]} {[%emt 00:01:18]} g6 {[%clk 00:05:46]} {[%emt 00:00:25]} 26. h4
{[%clk 00:05:20]} {[%emt 00:00:25]} Qe7 {[%clk 00:04:36]} {[%emt 00:01:19]} 27.
h5 {[%clk 00:04:38]} {[%emt 00:00:53]} Qg5 {[%clk 00:04:28]} {[%emt 00:00:18]}
28. Nd4 {[%clk 00:03:07]} {[%emt 00:01:41]} Nf6 {[%clk 00:04:16]} {[%emt
00:00:21]} 29. Nxe6 {[%clk 00:01:45]} {[%emt 00:01:33]} Rxe6 {[%clk 00:04:13]}
{[%emt 00:00:13]} 0-1

[Event "Snabb-SM för veteraner, 50+ 2019"]
[Site "Schackcentrum, Vegagatan 20, Gothenburg, Sweden"]
[Date "2019.10.05"]
[Round "4.1"]
[White "Borvander, Tom"]
[Black "Andreasson, Ingvar"]
[Result "1/2-1/2"]
[TimeControl "15 minutes + 10 seconds per move from move one"]
[WhiteFideId "1707388"]
[BlackFideId "1700294"]
[WhiteElo "2066"]
[BlackElo "2413"]

1. d4 {[%clk 00:15:19]} {[%emt 00:00:05]} Nf6 {[%clk 00:14:51]} {[%emt
00:00:29]} 2. c4 {[%clk 00:15:27]} {[%emt 00:00:02]} c5 {[%clk 00:14:58]}
{[%emt 00:00:03]} 3. d5 {[%clk 00:15:36]} {[%emt 00:00:02]} b5 {[%clk
00:15:07]} 4. cxb5 {[%clk 00:15:43]} {[%emt 00:00:03]} g6 {[%clk 00:15:08]}
{[%emt 00:00:08]} 5. Nc3 {[%clk 00:15:51]} {[%emt 00:00:01]} Bg7 {[%clk
00:15:10]} {[%emt 00:00:08]} 6. Nf3 {[%clk 00:16:00]} {[%emt 00:00:01]} a6
{[%clk 00:15:16]} {[%emt 00:00:04]} 7. bxa6 {[%clk 00:16:08]} {[%emt 00:00:02]}
O-O {[%clk 00:15:15]} {[%emt 00:00:11]} 8. e4 {[%clk 00:16:17]} e6 {[%clk
00:15:17]} {[%emt 00:00:09]} 9. Be2 {[%clk 00:15:00]} {[%emt 00:01:27]} Nxa6
{[%clk 00:14:35]} {[%emt 00:00:52]} 10. O-O {[%clk 00:14:47]} {[%emt 00:00:24]}
Nb4 {[%clk 00:11:39]} {[%emt 00:03:06]} 11. Be3 {[%clk 00:14:18]} {[%emt
00:00:39]} d6 {[%clk 00:09:12]} {[%emt 00:02:38]} 12. a3 {[%clk 00:14:23]}
{[%emt 00:00:05]} Na6 {[%clk 00:09:21]} {[%emt 00:00:01]} 13. Nd2 {[%clk
00:14:03]} {[%emt 00:00:30]} exd5 {[%clk 00:07:09]} {[%emt 00:02:21]} 14. exd5
{[%clk 00:14:08]} {[%emt 00:00:05]} Nc7 {[%clk 00:06:48]} {[%emt 00:00:30]} 15.
Bf3 {[%clk 00:11:37]} {[%emt 00:02:41]} Ba6 {[%clk 00:06:35]} {[%emt 00:00:22]}
16. Re1 {[%emt 00:00:06]} Rb8 {[%emt 00:00:01]} 17. Qc2 {[%clk 00:11:12]}
{[%emt 00:00:40]} Nd7 {[%clk 00:06:34]} {[%emt 00:00:21]} 18. Bf4 {[%clk
00:09:59]} {[%emt 00:01:23]} Ne5 {[%clk 00:05:51]} {[%emt 00:00:53]} 19. Be2
{[%clk 00:08:36]} {[%emt 00:01:33]} Bxe2 {[%clk 00:05:10]} {[%emt 00:00:50]} 20.
Rxe2 {[%clk 00:08:42]} {[%emt 00:00:05]} Nb5 {[%clk 00:05:16]} {[%emt
00:00:04]} 21. Nxb5 {[%clk 00:08:39]} {[%emt 00:00:13]} Rxb5 {[%clk 00:05:25]}
22. Rb1 {[%clk 00:08:40]} {[%emt 00:00:09]} Qb8 {[%clk 00:04:07]} {[%emt
00:01:27]} 23. Bxe5 {[%clk 00:08:41]} {[%emt 00:00:10]} Bxe5 {[%clk 00:03:41]}
{[%emt 00:00:36]} 24. Nc4 {[%clk 00:08:49]} {[%emt 00:00:02]} Bd4 {[%clk
00:03:26]} {[%emt 00:00:24]} 25. Qe4 {[%clk 00:08:10]} {[%emt 00:00:50]} Rb3
{[%clk 00:02:13]} {[%emt 00:01:22]} 26. Qe7 {[%clk 00:06:52]} {[%emt 00:01:26]}
Qb5 {[%clk 00:02:15]} {[%emt 00:00:11]} 27. Nxd6 {[%clk 00:06:34]} {[%emt
00:00:28]} Qd3 {[%clk 00:02:11]} {[%emt 00:00:14]} 28. Qe4 {[%clk 00:06:16]}
{[%emt 00:00:28]} Rd8 {[%clk 00:02:21]} 29. Qxd3 {[%clk 00:06:15]} {[%emt
00:00:12]} Rxd3 {[%clk 00:02:30]} {[%emt 00:00:01]} 30. Nc4 {[%clk 00:05:30]}
{[%emt 00:00:55]} Rxd5 {[%clk 00:02:33]} {[%emt 00:00:06]} 31. g3 {[%clk
00:05:23]} {[%emt 00:00:18]} Rd8 {[%clk 00:02:01]} {[%emt 00:00:43]} 32. Kg2
{[%clk 00:05:14]} {[%emt 00:00:19]} Ra8 {[%clk 00:02:03]} {[%emt 00:00:07]} 33.
Rc2 {[%clk 00:04:17]} {[%emt 00:01:06]} Rb3 {[%clk 00:02:00]} {[%emt 00:00:13]}
34. Re1 {[%clk 00:03:58]} {[%emt 00:00:29]} h5 {[%clk 00:01:54]} {[%emt
00:00:16]} 35. h4 {[%clk 00:04:04]} {[%emt 00:00:04]} Ra6 {[%clk 00:02:00]}
{[%emt 00:00:04]} 36. Ree2 {[%clk 00:03:50]} {[%emt 00:00:25]} Kg7 {[%clk
00:02:09]} {[%emt 00:00:01]} 37. Re1 {[%clk 00:03:13]} {[%emt 00:00:47]} Ra4
{[%emt 00:00:55]} 38. Ree2 {[%emt 00:00:03]} Kf6 {[%emt 00:00:04]} 1/2-1/2